bitfinex/quotes_BTCUSD_20250114
["timestamp","ask_amount","ask_price","bid_price","bid_amount"]
[1736873320240,0.00179614,95707.0,95706.0,0.73202841]
[1736873320651,1.4e-07,95707.0,95706.0,0.73202841]
[1736873320857,1.4e-07,95707.0,95706.0,2.01557841]
[1736873321083,0.00169759,95713.0,95712.0,9.227e-05]
[1736873321287,0.00169759,95713.0,95712.0,0.50739041]
[1736873321288,5.9e-07,95713.0,95712.0,0.50739041]
[1736873321496,0.0077902,95722.0,95721.0,0.20903227]
[1736873321668,0.0078998,95722.0,95721.0,1.02785741]
[1736873321869,0.0078998,95722.0,95721.0,2.61827141]
[1736873322332,0.00179215,95735.0,95721.0,2.61827141]
[1736873322333,0.00179215,95735.0,95734.0,0.35900427]
[1736873322475,0.00229126,95735.0,95734.0,0.51551741]
[1736873322675,0.00229126,95735.0,95734.0,0.51542514]
[1736873324528,0.00229126,95735.0,95734.0,0.52842514]
[1736873324955,0.00229126,95735.0,95734.0,0.52665287]
[1736873325391,0.00229126,95735.0,95734.0,0.52965287]
[1736873325550,0.00229126,95735.0,95734.0,0.38865287]
[1736873326156,0.00229126,95735.0,95734.0,0.37965287]
[1736873326669,0.00229126,95735.0,95734.0,0.37665287]
[1736873326872,0.00229126,95735.0,95734.0,0.38065287]
[1736873327256,0.00229126,95735.0,95734.0,0.37665287]
[1736873327474,0.00229126,95735.0,95734.0,0.38565287]
[1736873327679,0.00229126,95735.0,95734.0,0.36942514]
[1736873328060,0.00229126,95735.0,95734.0,0.37842514]
[1736873328266,0.00229126,95735.0,95734.0,0.37442514]
[1736873328441,0.00229126,95735.0,95734.0,0.37842514]
[1736873328898,0.00229126,95735.0,95734.0,0.36942514]
[1736873329068,0.00229126,95735.0,95734.0,0.37142514]
[1736873329272,0.00229126,95735.0,95734.0,0.36942514]
[1736873329881,0.00229126,95735.0,95734.0,0.36542514]
[1736873330487,0.12519899,95735.0,95734.0,0.05228622]
[1736873330690,0.17129899,95735.0,95734.0,0.05428622]
[1736873330980,0.17129899,95735.0,95734.0,0.05328622]
[1736873331177,0.42129899,95735.0,95734.0,0.05728622]
[1736873331392,0.42129899,95735.0,95685.0,0.18665215]
[1736873331393,0.023,95714.0,95704.0,0.208977]
[1736873331601,0.1,95703.0,95696.0,0.208995]
[1736873331826,0.1,95703.0,95697.0,0.10422692]
[1736873332242,0.023,95698.0,95688.0,0.00774328]
[1736873332435,0.023,95698.0,95689.0,0.10422692]
[1736873332801,0.023,95698.0,95689.0,0.31323492]
[1736873332926,0.023,95698.0,95693.0,0.209]
[1736873333115,0.023,95698.0,95695.0,0.208997]
[1736873333310,0.023,95698.0,95694.0,0.10422692]
[1736873334166,0.023,95698.0,95697.0,0.002]
[1736873334363,0.023,95698.0,95694.0,0.10422692]
[1736873334364,0.023,95698.0,95694.0,0.15651314]
[1736873334568,0.023,95698.0,95697.0,0.05228622]
[1736873335343,0.023,95698.0,95697.0,0.05528622]
[1736873335758,0.023,95702.0,95697.0,0.26427822]
[1736873335957,0.023,95698.0,95697.0,0.05528622]
[1736873336240,0.22290773,95698.0,95697.0,0.05528622]
[1736873336446,0.43189773,95698.0,95697.0,0.05628622]
[1736873337388,0.43189773,95698.0,95697.0,0.05328622]
[1736873337818,0.50809773,95698.0,95697.0,0.05528622]
[1736873338029,0.12290773,95695.0,95694.0,0.0008524]
[1736873338201,0.504299,95694.0,95693.0,0.0001096]
[1736873338399,0.70852592,95694.0,95693.0,0.0001096]
[1736873339146,0.80843365,95694.0,95693.0,0.0001096]
[1736873339558,0.81519365,95694.0,95693.0,0.05239582]
[1736873339861,0.70420673,95694.0,95693.0,0.05239582]
[1736873340099,0.71096673,95694.0,95693.0,0.05239582]
[1736873340299,0.61096673,95694.0,95693.0,0.05239582]
[1736873340446,0.71096673,95694.0,95693.0,0.05239582]
[1736873340632,0.71296673,95694.0,95693.0,0.05339582]
[1736873341035,0.023,95667.0,95664.0,0.0008529]
[1736873341240,0.023,95667.0,95664.0,0.00096251]
[1736873341789,0.023,95667.0,95664.0,0.21002651]
[1736873342221,0.19990773,95683.0,95665.0,0.10422692]
[1736873342435,0.1,95679.0,95665.0,0.10422692]
[1736873342651,0.09990773,95675.0,95666.0,0.20906]
[1736873342856,0.023,95673.0,95668.0,0.209056]
[1736873343065,0.1,95679.0,95669.0,0.10422692]
[1736873343278,0.209007,95691.0,95680.0,0.209029]
[1736873343279,0.1,95681.0,95680.0,0.209029]
[1736873343689,0.1,95685.0,95680.0,0.418058]
[1736873343846,0.023,95682.0,95680.0,0.26131522]
[1736873344060,0.09990773,95688.0,95681.0,0.31325392]
[1736873344261,0.023,95685.0,95681.0,0.57456714]
[1736873344447,0.12290773,95687.0,95686.0,0.209016]
[1736873344649,0.023,95687.0,95686.0,0.26130222]
[1736873345306,0.1223,95694.0,95686.0,0.15651314]
[1736873345307,0.09990773,95693.0,95686.0,0.15651314]
[1736873345514,0.08566,95706.0,95696.0,0.208994]
[1736873345515,0.09990773,95699.0,95696.0,0.208994]
[1736873345715,0.09990773,95699.0,95696.0,0.26128022]
[1736873346063,0.123,95697.0,95696.0,0.05228622]
[1736873346397,0.023,95697.0,95696.0,0.05228622]
[1736873346604,0.123,95697.0,95696.0,0.05228622]
[1736873346799,0.22290773,95697.0,95696.0,0.05228622]
[1736873347831,0.37390773,95697.0,95696.0,0.05228622]
[1736873348079,0.47813465,95697.0,95696.0,0.05228622]
[1736873348223,0.60353465,95697.0,95696.0,0.05228622]
[1736873348402,0.60253465,95697.0,95696.0,0.05228622]
[1736873348625,0.60453465,95697.0,95696.0,0.05228622]
[1736873348833,0.1,95670.0,95662.0,0.209068]
[1736873349225,0.023,95669.0,95666.0,0.20906]
[1736873349987,0.023,95672.0,95666.0,0.20906]
[1736873350191,0.023,95669.0,95666.0,0.20906]
[1736873350395,0.09990773,95677.0,95667.0,0.10422692]
[1736873350597,0.1,95673.0,95668.0,0.209056]
[1736873350781,0.023,95669.0,95667.0,0.0495]
[1736873350983,0.41086573,95667.0,95666.0,0.001]
[1736873351217,0.023,95666.0,95664.0,0.00096251]
[1736873351407,0.1,95668.0,95665.0,0.10422692]
[1736873351610,0.02070224,95689.0,95665.0,0.10422692]
[1736873351611,0.09990773,95683.0,95678.0,0.209032]
[1736873351812,0.1,95682.0,95679.0,0.10422692]
[1736873352032,0.09990773,95685.0,95679.0,0.10422692]
[1736873352226,0.1,95682.0,95679.0,0.10422692]
[1736873352425,0.023,95687.0,95679.0,0.15372692]
[1736873352651,0.1,95682.0,95679.0,0.15372692]
[1736873353223,0.1,95682.0,95680.0,0.20903]
[1736873353427,0.12290773,95681.0,95680.0,0.0495]
[1736873353636,0.22290773,95681.0,95680.0,0.0495]
[1736873355073,0.22390773,95681.0,95680.0,0.0495]
[1736873355490,0.024,95681.0,95680.0,0.0495]
[1736873355707,0.001,95681.0,95680.0,0.15372692]
[1736873356319,0.09990773,95698.0,95680.0,0.15372692]
[1736873356518,0.09990773,95698.0,95697.0,0.208992]
[1736873356720,0.09990773,95698.0,95697.0,0.258492]
[1736873356919,0.09990773,95698.0,95697.0,0.0495]
[1736873357136,0.19990773,95700.0,95697.0,0.0495]
[1736873357347,0.1,95703.0,95698.0,0.20899]
[1736873357558,0.09990773,95698.0,95695.0,0.208996]
[1736873357957,0.09990773,95698.0,95690.0,0.20827111]
[1736873358161,0.09990773,95698.0,95694.0,0.208997]
[1736873358493,0.12290773,95698.0,95697.0,0.001]
[1736873358786,0.12469819,95698.0,95697.0,0.001]
[1736873359140,0.12469819,95698.0,95694.0,0.31322392]
[1736873359338,0.12469819,95698.0,95694.0,0.52222192]
[1736873359545,0.00179046,95698.0,95696.0,0.208995]
[1736873359751,0.00179046,95698.0,95697.0,0.10422692]
[1736873360153,0.00179046,95698.0,95697.0,0.15372692]
[1736873361212,4.6e-07,95698.0,95697.0,0.16153848]
[1736873361418,0.00179215,95735.0,95734.0,0.208912]
[1736873361561,0.00179215,95735.0,95734.0,0.31313892]
[1736873361764,0.00229133,95735.0,95734.0,0.36263892]
[1736873362782,0.00229133,95735.0,95734.0,0.37406334]
[1736873362986,0.00229133,95735.0,95734.0,0.15372692]
[1736873364363,0.00329133,95735.0,95734.0,0.15372692]
[1736873364973,0.00229133,95735.0,95734.0,0.15872692]
[1736873365380,0.00229133,95735.0,95734.0,0.15972692]
[1736873366202,0.00229133,95735.0,95734.0,0.15472692]
[1736873366703,0.12519906,95735.0,95734.0,0.0495]
[1736873366857,0.22519906,95735.0,95734.0,0.0515]
[1736873367088,0.27239906,95735.0,95734.0,0.0515]
[1736873367259,0.27239906,95735.0,95734.0,0.0495]
[1736873367464,0.27239906,95735.0,95734.0,0.0565]
[1736873367660,0.27239906,95735.0,95734.0,0.0495]
[1736873368488,0.27439906,95735.0,95734.0,0.0495]
[1736873368665,0.50179906,95735.0,95734.0,0.0495]
[1736873369054,0.71753869,95735.0,95734.0,0.0495]
[1736873369325,0.81753869,95735.0,95734.0,0.0495]
[1736873369512,0.023,95699.0,95694.0,0.208998]
[1736873369686,0.1,95701.0,95699.0,0.208987]
[1736873370110,0.0013061,95721.0,95699.0,0.208987]
[1736873370111,0.19990773,95708.0,95707.0,0.20897]
[1736873370312,0.1,95708.0,95707.0,0.10422692]
[1736873370557,0.09990773,95716.0,95715.0,0.208953]
[1736873370709,0.12290773,95716.0,95715.0,0.208953]
[1736873370909,0.09990773,95721.0,95720.0,0.208942]
[1736873371112,0.1,95717.0,95716.0,0.20895]
[1736873371440,0.19990773,95721.0,95716.0,0.31317692]
[1736873371654,0.1,95719.0,95718.0,0.208947]
[1736873371806,0.1,95719.0,95718.0,0.31317392]
[1736873372159,0.1,95720.0,95719.0,0.208944]
[1736873372387,0.1,95720.0,95719.0,0.05224852]
[1736873373320,0.1,95720.0,95719.0,0.26119252]
[1736873373516,0.1,95720.0,95719.0,0.05224852]
[1736873373719,0.22290773,95720.0,95719.0,0.05224852]
[1736873374706,0.22290773,95720.0,95719.0,0.05324852]
[1736873375036,0.22290773,95720.0,95719.0,0.05224852]
[1736873375208,0.22390773,95720.0,95719.0,0.05224852]
[1736873375970,0.58384973,95720.0,95719.0,0.05224852]
[1736873376211,0.40890673,95694.0,95691.0,0.01246062]
[1736873376442,0.43190673,95694.0,95691.0,0.01246062]
[1736873377670,0.43190673,95694.0,95693.0,0.05310112]
[1736873378326,0.43290673,95694.0,95693.0,0.05310112]
[1736873378556,0.43390673,95694.0,95693.0,0.05310112]
[1736873380234,0.56000673,95694.0,95693.0,0.05310112]
[1736873380901,0.27180773,95694.0,95693.0,0.05310112]
[1736873381109,0.27080773,95694.0,95693.0,0.05310112]
[1736873381308,0.26980773,95694.0,95693.0,0.05310112]
[1736873381532,0.27380773,95694.0,95693.0,0.05310112]
[1736873381839,0.27680773,95694.0,95693.0,0.05310112]
[1736873383486,0.27380773,95694.0,95693.0,0.05310112]
[1736873383674,0.27280773,95694.0,95693.0,0.05310112]
[1736873383802,0.26980773,95694.0,95693.0,0.05310112]
[1736873383999,0.27648773,95694.0,95693.0,0.05310112]
[1736873384216,0.5268336,95694.0,95693.0,0.05310112]
[1736873384422,0.42648773,95694.0,95693.0,0.05310112]
[1736873384619,0.43048773,95694.0,95693.0,0.05310112]
[1736873384825,0.44163395,95694.0,95693.0,0.05310112]
[1736873385027,0.43763395,95694.0,95693.0,0.05310112]
[1736873385345,0.44363395,95694.0,95693.0,0.05310112]
[1736873385888,0.44163395,95694.0,95693.0,0.05310112]
[1736873386089,0.44563395,95694.0,95693.0,0.05310112]
[1736873386449,0.27380773,95694.0,95693.0,0.05310112]
[1736873386648,0.10390773,95694.0,95693.0,0.05310112]
[1736873386857,0.20590773,95694.0,95693.0,0.05310112]
[1736873387222,0.43390673,95694.0,95693.0,0.05310112]
[1736873387559,0.43690673,95694.0,95693.0,0.05410112]
[1736873387798,0.43390673,95694.0,95693.0,0.05310112]
[1736873388199,0.43490673,95694.0,95693.0,0.05310112]
[1736873388583,0.43790673,95694.0,95693.0,0.05310112]
[1736873388786,0.66548465,95694.0,95693.0,0.05310112]
[1736873388981,0.58790673,95694.0,95693.0,0.05310112]
[1736873389193,0.58490673,95694.0,95693.0,0.05310112]
[1736873389387,0.58290673,95694.0,95693.0,0.05310112]
[1736873389909,0.58190673,95694.0,95693.0,0.05310112]
[1736873390234,0.58390673,95694.0,95693.0,0.05310112]
[1736873390879,0.54912191,95694.0,95693.0,0.05310112]
[1736873391052,0.55112191,95694.0,95693.0,0.05310112]
[1736873391589,0.55380191,95694.0,95693.0,0.05310112]
[1736873391795,0.55480191,95694.0,95693.0,0.05310112]
[1736873391963,0.55580191,95694.0,95693.0,0.05310112]
[1736873392167,0.55480191,95694.0,95693.0,0.05310112]
[1736873392370,0.55380191,95694.0,95693.0,0.05310112]
[1736873392583,0.55780191,95694.0,95693.0,0.05310112]
[1736873393111,0.55580191,95694.0,95693.0,0.05310112]
[1736873393468,0.55880191,95694.0,95693.0,0.05310112]
[1736873394682,0.56180191,95694.0,95693.0,0.05310112]
[1736873395933,0.76602883,95694.0,95693.0,0.05310112]
[1736873398341,0.81332883,95694.0,95693.0,0.05310112]
[1736873398554,0.54718491,95665.0,95664.0,0.0033329]
[1736873398756,0.78521183,95665.0,95664.0,0.00344251]
[1736873399358,0.68098491,95665.0,95664.0,0.00344251]
[1736873399603,0.38542291,95665.0,95664.0,0.00344251]
[1736873399816,0.19112291,95665.0,95664.0,0.00344251]
[1736873400472,0.19412291,95665.0,95664.0,0.00344251]
[1736873401103,0.19412291,95665.0,95664.0,0.05569103]
[1736873401377,0.19112291,95665.0,95664.0,0.05569103]
[1736873401597,0.024,95665.0,95664.0,0.05569103]
[1736873401770,0.08812291,95665.0,95664.0,0.05569103]
[1736873402080,0.025,95665.0,95664.0,0.05569103]
[1736873402240,0.002,95665.0,95664.0,0.24291795]
[1736873402447,0.06512291,95670.0,95669.0,0.209054]
[1736873402663,0.06512291,95670.0,95665.0,0.209062]
[1736873402872,0.06512291,95670.0,95664.0,0.15991795]
[1736873402873,0.06512291,95670.0,95669.0,0.05224852]
[1736873403086,0.18812291,95666.0,95665.0,0.05224852]
[1736873403296,0.44718491,95665.0,95664.0,0.00944251]
[1736873403510,0.75141183,95665.0,95664.0,0.00944251]
[1736873403904,0.82711183,95665.0,95664.0,0.00944251]
[1736873404285,0.82711183,95665.0,95664.0,0.00344251]
[1736873404735,0.82811183,95665.0,95664.0,0.01044251]
[1736873404904,0.82711183,95665.0,95664.0,0.05569103]
[1736873405344,0.83411183,95665.0,95664.0,0.05669103]
[1736873405568,0.82711183,95665.0,95664.0,0.05569103]
[1736873406023,0.83811183,95665.0,95664.0,0.05669103]
[1736873406262,0.63388491,95665.0,95664.0,0.05669103]
[1736873406509,0.53518491,95665.0,95664.0,0.05669103]
[1736873406983,0.71808111,95665.0,95664.0,0.05669103]
[1736873407238,0.76241183,95665.0,95664.0,0.05669103]
[1736873407454,0.73811183,95665.0,95664.0,0.05669103]
[1736873407622,0.83811183,95665.0,95664.0,0.05669103]
[1736873408982,0.73811183,95665.0,95664.0,0.05669103]
[1736873409480,0.63811183,95665.0,95664.0,0.05669103]
[1736873409653,0.73811183,95665.0,95664.0,0.05669103]
[1736873409857,0.63811183,95665.0,95664.0,0.05669103]
[1736873410161,0.73811183,95665.0,95664.0,0.05669103]
[1736873410398,0.43518491,95665.0,95664.0,0.05669103]
[1736873410598,0.07612291,95665.0,95664.0,0.05669103]
[1736873410815,0.011,95665.0,95664.0,0.05669103]
[1736873411015,0.011,95665.0,95664.0,0.16091795]
[1736873411419,0.007,95665.0,95664.0,0.16091795]
[1736873411637,0.1,95675.0,95664.0,0.15991795]
[1736873411840,0.06512291,95680.0,95665.0,0.24289733]
[1736873412052,0.06691337,95693.0,95666.0,0.083]
[1736873412266,0.06691337,95693.0,95686.0,0.209015]
[1736873412267,0.1,95687.0,95686.0,0.209015]
[1736873412469,0.1,95688.0,95687.0,0.209014]
[1736873412609,0.06691337,95693.0,95687.0,0.10422692]
[1736873412821,0.1,95691.0,95690.0,0.209008]
[1736873413064,0.18812291,95688.0,95682.0,0.209023]
[1736873413285,0.023,95684.0,95682.0,0.209024]
[1736873413549,0.023,95684.0,95666.0,0.083]
[1736873413550,0.06512291,95679.0,95666.0,0.083]
[1736873413740,0.023,95680.0,95666.0,0.083]
[1736873413741,0.18812291,95676.0,95670.0,0.31327792]
[1736873414186,0.18812291,95676.0,95670.0,0.10422692]
[1736873414400,0.18812291,95676.0,95670.0,0.31327692]
[1736873414723,0.16512291,95681.0,95670.0,0.31327692]
[1736873414955,0.0076,95687.0,95670.0,0.31327692]
[1736873414956,0.123,95676.0,95675.0,0.209041]
[1736873415293,0.123,95676.0,95675.0,0.05224852]
[1736873415501,0.023,95676.0,95675.0,0.26128952]
[1736873415739,0.023,95680.0,95675.0,0.05224852]
[1736873415939,0.06512291,95685.0,95676.0,0.31326492]
[1736873416154,0.023,95684.0,95681.0,0.209027]
[1736873416358,0.023,95682.0,95676.0,0.15647544]
[1736873416568,0.06512291,95679.0,95674.0,0.209042]
[1736873416772,0.16512291,95679.0,95674.0,0.209042]
[1736873416943,0.16512291,95679.0,95675.0,0.001]
[1736873416944,0.08812291,95676.0,95675.0,0.001]
[1736873418084,0.023,95676.0,95675.0,0.05224852]
[1736873418684,0.024,95676.0,95675.0,0.05224852]
[1736873419054,0.024,95676.0,95675.0,0.05524852]
[1736873419258,0.024,95676.0,95675.0,0.05224852]
[1736873419471,0.023,95676.0,95675.0,0.05224852]
[1736873420210,0.08812291,95676.0,95675.0,0.05224852]
[1736873420974,0.18812291,95676.0,95675.0,0.05224852]
[1736873421179,0.19042947,95676.0,95675.0,0.05224852]
[1736873421341,0.18912291,95676.0,95675.0,0.05224852]
[1736873421547,0.08812291,95676.0,95675.0,0.05224852]
[1736873421752,0.023,95676.0,95675.0,0.05424852]
[1736873422106,0.023,95676.0,95675.0,0.05224852]
[1736873422484,0.025,95676.0,95675.0,0.05224852]
[1736873422688,0.024,95676.0,95675.0,0.05224852]
[1736873423073,0.023,95676.0,95675.0,0.05224852]
[1736873423483,0.023,95676.0,95675.0,0.05324852]
[1736873423856,0.06512291,95692.0,95691.0,0.209006]
[1736873424084,0.06512291,95692.0,95691.0,0.05224852]
[1736873424973,0.18812291,95692.0,95691.0,0.05224852]
[1736873425731,0.18812291,95692.0,95691.0,0.05524852]
[1736873425930,0.18812291,95692.0,95691.0,0.05324852]
[1736873426360,0.19112291,95692.0,95691.0,0.05224852]
[1736873426862,0.19312291,95692.0,95691.0,0.05224852]
[1736873427066,0.76199415,95692.0,95691.0,0.05224852]
[1736873427351,0.76095221,95692.0,95691.0,0.05224852]
[1736873427553,0.37418491,95665.0,95652.0,0.34907911]
[1736873427878,0.39718491,95665.0,95652.0,0.34907911]
[1736873428084,0.023,95664.0,95650.0,0.03917377]
[1736873428290,0.123,95660.0,95650.0,0.03917377]
[1736873428684,0.023,95654.0,95644.0,0.209108]
[1736873428888,0.06512291,95649.0,95644.0,0.00014992]
[1736873429091,0.023,95646.0,95644.0,0.05239844]
[1736873429285,0.08812291,95646.0,95644.0,0.05239844]
[1736873429738,0.06512291,95645.0,95644.0,0.05239844]
[1736873429942,0.08812291,95645.0,95644.0,0.05239844]
[1736873430116,0.08812291,95645.0,95644.0,0.05439844]
[1736873430316,0.08812291,95645.0,95644.0,0.06139844]
[1736873431288,0.08812291,95645.0,95644.0,0.05939844]
[1736873431496,0.08812291,95645.0,95644.0,0.05239844]
[1736873431724,0.08812291,95645.0,95644.0,0.05539844]
[1736873431935,0.08912291,95645.0,95644.0,0.06339844]
[1736873432087,0.09518676,95645.0,95644.0,0.05239844]
[1736873432486,0.09518676,95645.0,95644.0,0.05539844]
[1736873433546,0.03006385,95645.0,95644.0,0.05539844]
[1736873434187,0.03006385,95645.0,95644.0,0.26450644]
[1736873434350,0.03006385,95645.0,95644.0,0.05539844]
[1736873434548,0.03006385,95645.0,95644.0,0.26450644]
[1736873434726,0.00706385,95645.0,95644.0,0.36873336]
[1736873434927,0.001,95645.0,95644.0,0.36873336]
[1736873436217,0.001,95645.0,95644.0,0.45053336]
[1736873436579,0.001,95645.0,95644.0,0.47130625]
[1736873436782,0.001,95645.0,95644.0,0.65618334]
[1736873436999,0.06512291,95687.0,95683.0,0.209023]
[1736873437223,0.00664,95689.0,95683.0,0.26127052]
[1736873437224,0.06512291,95686.0,95683.0,0.26127052]
[1736873437543,0.00595297,95686.0,95685.0,0.209019]
[1736873437750,0.06512291,95694.0,95692.0,0.209003]
[1736873437921,0.06512291,95694.0,95692.0,0.26125152]
[1736873438319,0.00194007,95693.0,95692.0,0.05224852]
[1736873439342,0.00194007,95693.0,95692.0,0.05524852]
[1736873439703,0.02494007,95693.0,95692.0,0.05524852]
[1736873440919,0.03238835,95693.0,95692.0,0.05524852]
[1736873443497,0.03238835,95693.0,95692.0,0.0505548]
[1736873443798,0.09751126,95693.0,95692.0,0.0505548]
[1736873445151,0.09851126,95693.0,95692.0,0.0505548]
[1736873445374,0.03338835,95693.0,95692.0,0.0505548]
[1736873445587,0.00938835,95693.0,95692.0,0.15478172]
[1736873445786,0.00938835,95693.0,95692.0,0.23668172]
[1736873446016,0.00938835,95693.0,95692.0,0.23768172]
[1736873446225,0.00194007,95693.0,95692.0,0.23768172]
[1736873446628,0.00194007,95693.0,95692.0,0.31765881]
[1736873447048,0.00194007,95693.0,95692.0,0.31465881]
[1736873447225,0.00194007,95693.0,95692.0,0.33589265]
[1736873447556,0.06512291,95729.0,95702.0,0.03487709]
[1736873447852,0.06512291,95729.0,95727.0,0.208925]
[1736873448468,0.06512291,95724.0,95717.0,0.208947]
[1736873448671,0.06512291,95716.0,95704.0,0.208977]
[1736873448866,0.023,95715.0,95712.0,0.208958]
[1736873449099,0.023,95724.0,95705.0,0.10422692]
[1736873449319,0.06512291,95722.0,95718.0,0.208945]
[1736873449533,0.023,95721.0,95719.0,0.208944]
[1736873449963,0.0022893,95734.0,95719.0,0.04758]
[1736873449964,0.023,95723.0,95719.0,0.04758]
[1736873450159,0.06512291,95732.0,95720.0,0.31316692]
[1736873450367,0.06741221,95734.0,95729.0,0.208921]
[1736873450783,0.06741221,95734.0,95729.0,0.04758]
[1736873451162,0.08812291,95730.0,95729.0,0.04758]
[1736873451441,0.18812291,95730.0,95729.0,0.04758]
[1736873452181,0.18912291,95730.0,95729.0,0.04758]
[1736873452390,0.40153166,95730.0,95729.0,0.04758]
[1736873452595,0.57938983,95730.0,95729.0,0.04758]
[1736873453004,0.58338983,95730.0,95729.0,0.04758]
[1736873453931,0.208972,95707.0,95697.0,0.208991]
[1736873454171,0.023,95702.0,95697.0,0.208991]
[1736873454438,0.023,95702.0,95692.0,0.0008529]
[1736873454439,0.06512291,95696.0,95692.0,0.0008529]
[1736873454695,0.023,95693.0,95692.0,0.0008529]
[1736873455149,0.023,95693.0,95692.0,0.0484329]
[1736873456048,0.023,95693.0,95692.0,0.0524329]
[1736873456255,0.08812291,95693.0,95692.0,0.0524329]
[1736873456668,0.09260622,95693.0,95692.0,0.0524329]
[1736873457375,0.09433418,95693.0,95692.0,0.0524329]
[1736873457598,0.0925909,95693.0,95692.0,0.0524329]
[1736873457803,0.09432871,95693.0,95692.0,0.0514329]
[1736873458106,0.09432871,95693.0,95692.0,0.0494329]
[1736873458262,0.0925909,95693.0,95692.0,0.0514329]
[1736873458448,0.09432206,95693.0,95692.0,0.0484329]
[1736873458855,0.19432206,95693.0,95692.0,0.0484329]
[1736873459091,0.19562843,95693.0,95692.0,0.0484329]
[1736873459303,0.19432206,95693.0,95692.0,0.0484329]
[1736873459708,0.19532206,95693.0,95692.0,0.0484329]
[1736873460739,0.07232206,95693.0,95692.0,0.0484329]
[1736873460952,0.00719915,95693.0,95692.0,0.16330859]
[1736873461155,0.06512291,95700.0,95693.0,0.209001]
[1736873461410,0.06512291,95699.0,95693.0,0.256581]
[1736873461827,0.023,95698.0,95693.0,0.256581]
[1736873462062,0.00934552,95698.0,95693.0,0.256581]
[1736873462433,0.00934552,95698.0,95693.0,0.04758]
[1736873462634,0.06512291,95694.0,95693.0,0.04758]
[1736873462865,0.08812291,95694.0,95693.0,0.04758]
[1736873463066,0.08812291,95694.0,95693.0,0.04858]
[1736873463067,0.09747785,95694.0,95693.0,0.04858]
[1736873463266,0.03235494,95694.0,95693.0,0.04858]
[1736873463896,0.00935494,95694.0,95693.0,0.15280692]
[1736873464254,0.06512291,95712.0,95695.0,0.0831]
[1736873464462,0.1,95711.0,95704.0,0.208976]
[1736873464664,0.10940553,95711.0,95704.0,0.208976]
[1736873464811,0.17452844,95711.0,95704.0,0.36078292]
[1736873465016,0.023,95710.0,95704.0,0.36078292]
[1736873465212,0.023,95710.0,95704.0,0.04758]
[1736873465213,0.023,95706.0,95704.0,0.04758]
[1736873465580,0.023,95706.0,95705.0,0.208975]
[1736873465778,0.023,95706.0,95705.0,0.04758]
[1736873466436,0.024,95706.0,95705.0,0.04758]
[1736873467403,0.19042909,95706.0,95705.0,0.04758]
[1736873467606,0.35813722,95706.0,95705.0,0.04758]
[1736873467804,0.355831,95706.0,95705.0,0.04758]
[1736873468167,0.61005792,95706.0,95705.0,0.04758]
[1736873468388,0.71005792,95706.0,95705.0,0.04758]
[1736873469032,0.57024983,95706.0,95660.0,0.20798872]
[1736873469304,0.18812291,95693.0,95677.0,0.209036]
[1736873469515,0.39712391,95693.0,95673.0,0.209043]
[1736873469684,0.39712391,95693.0,95673.0,0.418088]
[1736873469880,0.39712391,95693.0,95677.0,0.209034]
[1736873470175,0.39712391,95693.0,95692.0,0.0018529]
[1736873470343,0.39712391,95693.0,95692.0,0.0490729]
[1736873470344,0.18812291,95693.0,95692.0,0.0490729]
[1736873470591,0.18812291,95693.0,95692.0,0.0480729]
[1736873470973,0.0974506,95693.0,95692.0,0.0480729]
[1736873471416,0.1974506,95693.0,95692.0,0.0480729]
[1736873471591,0.00932769,95693.0,95692.0,0.0480729]
[1736873471786,0.06512291,95696.0,95693.0,0.209001]
[1736873471988,0.1,95702.0,95693.0,0.256221]
[1736873472227,0.023,95699.0,95693.0,0.256221]
[1736873472429,0.0503,95706.0,95693.0,0.256221]
[1736873472430,0.105,95706.0,95698.0,0.20899]
[1736873472632,0.06512291,95706.0,95703.0,0.208977]
[1736873472839,0.06512291,95706.0,95699.0,0.208988]
[1736873472840,0.0453,95718.0,95711.0,0.208962]
[1736873473046,0.06512291,95715.0,95712.0,0.208959]
[1736873473231,0.208923,95730.0,95717.0,0.208949]
[1736873473440,0.06512291,95718.0,95717.0,0.208949]
[1736873473576,0.08812291,95718.0,95717.0,0.04722]
[1736873473777,0.39706991,95718.0,95717.0,0.04722]
[1736873475854,0.557421,95718.0,95717.0,0.04722]
[1736873476259,0.86832435,95718.0,95717.0,0.04722]
[1736873476716,0.600721,95718.0,95717.0,0.04722]
[1736873476920,0.00679109,95718.0,95717.0,0.04822]
[1736873477137,0.01079109,95718.0,95717.0,0.257169]
[1736873477338,0.11079109,95718.0,95717.0,0.04822]
[1736873477556,0.01079109,95718.0,95717.0,0.04822]
[1736873477682,0.02045676,95718.0,95717.0,0.04822]
[1736873477884,0.01079109,95718.0,95717.0,0.04822]
[1736873478146,0.00579109,95718.0,95717.0,0.04722]
[1736873478583,0.00679109,95718.0,95717.0,0.04822]
[1736873478789,0.00979109,95718.0,95717.0,0.15144692]
[1736873478981,0.01079109,95718.0,95717.0,0.15144692]
[1736873479271,0.00179109,95718.0,95717.0,0.15144692]
[1736873479622,0.00179109,95718.0,95717.0,0.15944692]
[1736873483042,0.00179109,95718.0,95717.0,0.39034692]
[1736873484152,0.00179109,95718.0,95717.0,0.24034692]
[1736873485697,0.00179109,95718.0,95717.0,0.05522]
[1736873486120,0.01163381,95718.0,95717.0,0.05522]
[1736873486320,0.00179109,95718.0,95717.0,0.05522]
[1736873487109,0.089914,95718.0,95717.0,0.05522]
[1736873487354,0.01158791,95718.0,95717.0,0.36839592]
[1736873487588,0.00179109,95718.0,95717.0,0.36839592]
[1736873488011,0.00179109,95718.0,95717.0,0.38972637]
[1736873488505,0.00179109,95718.0,95717.0,0.38772637]
[1736873488693,0.00179109,95718.0,95717.0,0.36639592]
[1736873489700,0.00179109,95718.0,95717.0,0.36839592]
[1736873492157,0.00179109,95718.0,95717.0,0.51839592]
[1736873496720,0.00179109,95718.0,95717.0,0.59929592]
[1736873496918,0.00179109,95718.0,95717.0,0.76907401]
[1736873497539,0.00179109,95718.0,95717.0,0.63417301]
[1736873497745,0.00178983,95734.0,95733.0,0.208914]
[1736873497947,0.00144036,95734.0,95733.0,0.51036092]
[1736873498148,0.00144036,95734.0,95733.0,0.54523801]
[1736873499395,0.00144036,95734.0,95733.0,0.55523801]
[1736873499628,0.00179235,95748.0,95747.0,0.39376009]
[1736873499629,3.5e-07,95748.0,95747.0,0.39376009]
[1736873499799,0.00178858,95761.0,95747.0,0.39376009]
[1736873499800,8e-07,95755.0,95754.0,0.72947709]
[1736873500046,0.1,95797.0,95754.0,0.72947709]